bitfinex-derivatives/quotes_BTCF0:USTF0_20250330
["timestamp","ask_amount","ask_price","bid_price","bid_amount"]
[1743312557936,0.56570619,83211.0,83210.0,0.120845]
[1743312558236,0.92650619,83211.0,83210.0,0.120845]
[1743312558446,0.92650619,83211.0,83210.0,0.120205]
[1743312560343,0.95910619,83211.0,83210.0,0.120205]
[1743312561843,0.77910052,83211.0,83210.0,0.120205]
[1743312562146,0.77910052,83211.0,83210.0,0.151465]
[1743312562343,0.77910052,83211.0,83210.0,0.150705]
[1743312564945,0.41830052,83211.0,83210.0,0.150705]
[1743312565146,0.41830052,83211.0,83210.0,0.151345]
[1743312565353,0.77910052,83211.0,83210.0,0.151345]
[1743312565546,0.77910052,83211.0,83210.0,0.150705]
[1743312568043,0.74650052,83211.0,83210.0,0.150705]
[1743312568849,0.63186052,83211.0,83210.0,0.150705]
[1743312569142,0.74650052,83211.0,83210.0,0.151625]
[1743312569344,0.74650052,83211.0,83210.0,0.150705]
[1743312571154,0.38570052,83211.0,83210.0,0.150705]
[1743312571354,0.38570052,83211.0,83210.0,0.151345]
[1743312572249,0.41640052,83211.0,83210.0,0.151345]
[1743312577456,0.77720052,83211.0,83210.0,0.151345]
[1743312580344,0.41640052,83211.0,83210.0,0.151345]
[1743312580544,0.77720052,83211.0,83210.0,0.151345]
[1743312581959,0.41640052,83211.0,83210.0,0.151345]
[1743312582155,0.77720052,83211.0,83210.0,0.151345]
[1743312587154,0.74650052,83211.0,83210.0,0.151345]
[1743312587665,0.62628532,83211.0,83210.0,0.151345]
[1743312595659,0.26548532,83211.0,83210.0,0.151345]
[1743312595969,0.62628532,83211.0,83210.0,0.151345]
[1743312598357,0.26548532,83211.0,83210.0,0.151345]
[1743312598558,0.62628532,83211.0,83210.0,0.151345]
[1743312602658,0.56617952,83211.0,83210.0,0.151345]
[1743312602861,0.05923952,83211.0,83210.0,0.151345]
[1743312605872,0.0008,83211.0,83210.0,0.151345]
[1743312606075,0.14411384,83212.0,83211.0,0.12021]
[1743312606272,0.14491384,83212.0,83211.0,0.12101]
[1743312606571,0.14491384,83212.0,83211.0,0.18461]
[1743312608276,0.14491384,83212.0,83211.0,0.54541]
[1743312609575,0.14491384,83212.0,83211.0,0.18461]
[1743312609771,0.0008,83212.0,83211.0,0.54541]
[1743312609963,0.10799444,83216.0,83215.0,0.1202042]
[1743312610166,0.10883444,83216.0,83215.0,0.1210442]
[1743312610780,0.10883444,83216.0,83215.0,0.1845442]
[1743312612779,0.00084,83216.0,83215.0,0.1845442]
[1743312612974,0.10799444,83219.0,83218.0,0.1201999]
[1743312613171,0.10879444,83219.0,83218.0,0.1208399]
[1743312613864,0.10879444,83219.0,83218.0,0.1845399]
[1743312617077,0.0008,83219.0,83218.0,0.1845399]
[1743312617278,0.00051904,83220.0,83219.0,0.1201985]
[1743312617665,0.00051904,83220.0,83219.0,0.2195985]
[1743312617865,0.00051904,83220.0,83219.0,0.2203185]
[1743312618476,0.00051904,83220.0,83219.0,0.23241366]
[1743312619180,0.00131904,83220.0,83219.0,0.16621366]
[1743312619382,0.00135904,83220.0,83219.0,0.16621366]
[1743312619577,0.06335904,83220.0,83219.0,0.16621366]
[1743312620481,0.06335904,83220.0,83219.0,0.1541185]
[1743312620685,0.06335904,83220.0,83219.0,0.1209185]
[1743312620884,0.17795904,83220.0,83219.0,0.1209185]
[1743312621983,0.29815604,83220.0,83219.0,0.1209185]
[1743312622178,0.29815604,83220.0,83219.0,0.1201985]
[1743312622379,0.29815604,83220.0,83219.0,0.1208385]
[1743312622580,0.29815604,83220.0,83219.0,0.1201985]
[1743312622785,0.31021627,83220.0,83219.0,0.1201985]
[1743312623184,0.31021627,83220.0,83219.0,0.1208385]
[1743312624980,0.31021627,83220.0,83219.0,0.1201985]
[1743312625779,0.67101627,83220.0,83219.0,0.1201985]
[1743312626386,0.65895604,83220.0,83219.0,0.1201985]
[1743312629703,0.67078757,83220.0,83219.0,0.1201985]
[1743312632801,0.90937067,83220.0,83219.0,0.1201985]
[1743312634907,0.54857067,83220.0,83219.0,0.1201985]
[1743312635113,0.90937067,83220.0,83219.0,0.1208385]
[1743312635308,0.90937067,83220.0,83219.0,0.1201985]
[1743312636313,0.72922837,83220.0,83219.0,0.1201985]
[1743312637907,0.36842837,83220.0,83219.0,0.1201985]
[1743312638107,0.72922837,83220.0,83219.0,0.1208785]
[1743312638404,0.72922837,83220.0,83219.0,0.1201985]
[1743312639013,0.72922837,83220.0,83219.0,0.1523985]
[1743312642417,0.36842837,83220.0,83219.0,0.1523985]
[1743312642621,0.72922837,83220.0,83219.0,0.1530385]
[1743312642809,0.72922837,83220.0,83219.0,0.1523985]
[1743312646415,0.36842837,83220.0,83219.0,0.1523985]
[1743312646615,0.72922837,83220.0,83219.0,0.1531185]
[1743312646823,0.72922837,83220.0,83219.0,0.1523985]
[1743312647020,0.36842837,83220.0,83219.0,0.1523985]
[1743312647223,0.72922837,83220.0,83219.0,0.1530785]
[1743312647416,0.72922837,83220.0,83219.0,0.1523985]
[1743312650021,0.72922837,83220.0,83219.0,0.1846985]
[1743312651511,0.94547489,83220.0,83219.0,0.1846985]
[1743312655513,0.72922837,83220.0,83219.0,0.1846985]
[1743312656623,0.71739684,83220.0,83219.0,0.1846985]
[1743312658216,0.72927244,83220.0,83219.0,0.1846985]
[1743312660826,0.72927244,83220.0,83219.0,0.0645]
[1743312663224,0.76207244,83220.0,83219.0,0.0645]
[1743312663427,0.76207244,83220.0,83219.0,0.0322]
[1743312664423,0.76207244,83220.0,83211.0,0.0324]
[1743312664728,0.1202144,83208.0,83206.0,0.21628261]
[1743312664927,0.2995758,83207.0,83206.0,0.21692261]
[1743312665124,0.3332558,83207.0,83206.0,0.21692261]
[1743312667134,0.6940558,83207.0,83206.0,0.21692261]
[1743312667833,0.3352558,83207.0,83206.0,0.21692261]
[1743312668030,0.6960558,83207.0,83206.0,0.21692261]
[1743312668531,0.7544966,83207.0,83206.0,0.00064]
[1743312668729,0.7544966,83207.0,83205.0,8e-05]
[1743312668730,0.1202172,83206.0,83205.0,8e-05]
[1743312668930,0.13282959,83206.0,83205.0,8e-05]
[1743312669127,0.19552959,83206.0,83205.0,8e-05]
[1743312669534,0.55632959,83206.0,83205.0,8e-05]
[1743312669939,0.19552959,83206.0,83205.0,8e-05]
[1743312670132,0.55732959,83206.0,83205.0,0.00088]
[1743312670328,0.55832959,83206.0,83205.0,0.1202987]
[1743312671027,0.55832959,83206.0,83205.0,0.1540387]
[1743312671735,0.67292959,83206.0,83205.0,0.1540387]
[1743312672322,0.67292959,83206.0,83205.0,0.1845387]
[1743312673726,0.67292959,83206.0,83205.0,0.03382]
[1743312673932,0.67292959,83206.0,83205.0,0.03318]
[1743312674533,0.67292959,83206.0,83205.0,8e-05]
[1743312678543,0.55026907,83206.0,83205.0,8e-05]
[1743312678740,0.91106907,83206.0,83205.0,8e-05]
[1743312680950,0.91106907,83206.0,83205.0,0.03058]
[1743312682145,0.7313789,83206.0,83205.0,0.03058]
[1743312682345,0.7313789,83206.0,83205.0,0.03122]
[1743312682744,0.71956651,83206.0,83205.0,0.1514387]
[1743312683055,0.06124931,83206.0,83205.0,0.1514387]
[1743312683242,0.25151094,83219.0,83218.0,0.1201999]
[1743312683441,0.25215094,83219.0,83218.0,0.4817199]
[1743312683651,0.1201819,83231.0,83223.0,0.1201927]
[1743312683856,0.28772697,83224.0,83223.0,0.1211527]
[1743312684963,0.28972697,83224.0,83223.0,0.1211527]
[1743312686257,0.00788001,83224.0,83223.0,0.1211527]
[1743312686556,0.00788001,83224.0,83223.0,0.4819527]
[1743312687357,0.00788001,83224.0,83223.0,0.16469367]
[1743312687851,0.00788001,83224.0,83223.0,0.19499367]
[1743312688653,0.00788001,83224.0,83223.0,0.1829527]
[1743312688654,0.12807121,83224.0,83223.0,0.1829527]
[1743312689153,0.15877121,83224.0,83223.0,0.1829527]
[1743312689354,0.00788001,83224.0,83223.0,0.1829527]
[1743312690756,0.007,83224.0,83223.0,0.1829527]
[1743312695451,0.007,83224.0,83223.0,0.2150527]
[1743312700462,0.00788001,83224.0,83223.0,0.2150527]
[1743312704068,0.12807121,83224.0,83223.0,0.1211527]
[1743312704270,0.00788001,83224.0,83223.0,0.1211527]
[1743312704469,0.00788001,83224.0,83223.0,0.1544527]
[1743312708865,0.00788001,83224.0,83223.0,0.1211527]
[1743312709268,0.07118001,83224.0,83223.0,0.1211527]
[1743312712570,0.07118001,83224.0,83223.0,0.1522527]
[1743312712767,0.17957201,83234.0,83228.0,0.1201855]
[1743312712967,0.0309,83233.0,83232.0,0.1201797]
[1743312713268,0.03206,83233.0,83232.0,0.1213397]
[1743312714174,0.03306,83233.0,83232.0,0.1213397]
[1743312716066,0.06396,83233.0,83232.0,0.1213397]
[1743312718277,0.06396,83233.0,83232.0,0.13028834]
[1743312719177,0.0628,83233.0,83232.0,0.13028834]
[1743312720672,0.06396,83233.0,83232.0,0.13028834]
[1743312721179,0.0628,83233.0,83232.0,0.13028834]
[1743312721476,0.0628,83233.0,83232.0,0.12912834]
[1743312726073,0.0628,83233.0,83232.0,0.13032834]
[1743312727976,0.0628,83233.0,83232.0,0.16352834]
[1743312729775,0.0628,83233.0,83232.0,0.52432834]
[1743312731285,0.0628,83233.0,83232.0,0.16352834]
[1743312731486,0.0628,83233.0,83232.0,0.52432834]
[1743312733281,0.0628,83233.0,83232.0,0.55552834]
[1743312733482,0.001,83233.0,83232.0,0.55552834]
[1743312734083,0.0961,83244.0,83243.0,0.1201638]
[1743312734289,0.0961,83244.0,83243.0,0.1214038]
[1743312735184,0.0961,83244.0,83243.0,0.1858038]
[1743312735692,0.0961,83244.0,83243.0,0.19756792]
[1743312748604,0.0961,83244.0,83243.0,0.13316792]
[1743312749207,0.09674,83244.0,83243.0,0.13316792]
[1743312752215,0.09674,83244.0,83241.0,0.21628261]
[1743312752216,0.1201653,83242.0,83241.0,0.21628261]
[1743312752511,0.13296368,83242.0,83241.0,0.11724261]
[1743312752706,0.13296368,83242.0,83241.0,0.06734261]
[1743312752707,0.28296368,83242.0,83241.0,0.06734261]
[1743312753010,0.28296368,83242.0,83241.0,0.06658261]
[1743312753414,0.1201667,83241.0,83240.0,8e-05]
[1743312753606,0.120171,83238.0,83237.0,0.28836674]
[1743312753806,0.235451,83238.0,83237.0,0.28912674]
[1743312754016,0.235451,83238.0,83237.0,0.40929924]
[1743312754215,0.235451,83238.0,83237.0,0.1209325]
[1743312756103,0.235451,83238.0,83237.0,0.00076]
[1743312756417,0.185171,83238.0,83237.0,0.00076]
[1743312756718,0.299651,83238.0,83237.0,0.00076]
[1743312757218,0.299651,83238.0,83237.0,0.1209325]
[1743312757612,0.660451,83238.0,83237.0,0.1209325]
[1743312758521,0.660451,83238.0,83237.0,0.1201725]
[1743312762116,0.660451,83238.0,83237.0,0.1209325]
[1743312762319,0.660491,83238.0,83237.0,0.1201725]
[1743312762922,0.660491,83238.0,83237.0,0.1209325]
[1743312764713,0.0600889,83234.0,83233.0,0.120178]
[1743312764907,0.1810286,83234.0,83233.0,0.00076]
[1743312765314,0.2777286,83234.0,83233.0,0.00076]
[1743312765513,0.1201797,83232.0,83231.0,8e-05]
[1743312765707,0.1201855,83228.0,83227.0,0.1201863]
[1743312765910,0.2354655,83228.0,83227.0,0.1209463]
[1743312766107,0.24749263,83228.0,83227.0,0.1209463]
[1743312766318,0.60829263,83228.0,83227.0,0.1209463]
[1743312766519,0.60829263,83228.0,83227.0,0.1201863]
[1743312773124,0.24749263,83228.0,83227.0,0.1201863]
[1743312773331,0.60829263,83228.0,83227.0,0.1209463]
[1743312773623,0.60829263,83228.0,83227.0,0.1201863]
[1743312774518,0.60829263,83228.0,83224.0,0.0919955]
[1743312774519,0.1201898,83225.0,83224.0,0.0319]
[1743312774719,0.0600984,83221.0,83211.0,0.1807843]
[1743312774920,0.1201999,83218.0,83217.0,0.1520003]
[1743312775118,0.5963199,83218.0,83217.0,0.0326]
[1743312775624,0.5963199,83218.0,83217.0,0.0318]
[1743312777029,0.5963199,83218.0,83217.0,0.0326]
[1743312777218,0.5963199,83218.0,83217.0,0.0346]
[1743312777918,0.5963199,83218.0,83217.0,0.0356]
[1743312778125,0.5963199,83218.0,83217.0,0.0346]
[1743312778429,0.2355199,83218.0,83217.0,0.0346]
[1743312778619,0.9571199,83218.0,83217.0,0.0346]
[1743312778818,0.9571199,83218.0,83217.0,0.0338]
[1743312779122,0.96633872,83218.0,83217.0,0.0338]
[1743312783426,0.24473872,83218.0,83217.0,0.0338]
[1743312783630,0.24473872,83218.0,83217.0,0.03456]
[1743312783829,0.96633872,83218.0,83217.0,0.03456]
[1743312784034,0.96633872,83218.0,83217.0,0.0338]
[1743312784331,0.96633872,83218.0,83217.0,0.1540014]
[1743312784527,0.96633872,83218.0,83217.0,0.1547614]
[1743312786527,0.96633872,83218.0,83217.0,0.1540014]
[1743312786528,0.99783872,83218.0,83217.0,0.1540014]
[1743312786830,0.63703872,83218.0,83217.0,0.1540014]
[1743312787023,0.63703872,83218.0,83217.0,0.1548014]
[1743312787221,0.66873872,83218.0,83217.0,0.1548014]
[1743312787830,0.66873872,83218.0,83217.0,0.1540014]
[1743312788032,0.55421872,83218.0,83217.0,0.1540014]
[1743312788228,0.66873872,83218.0,83217.0,0.1540014]
[1743312788426,0.55421872,83218.0,83217.0,0.1540014]
[1743312788731,0.66873872,83218.0,83217.0,0.1540014]
[1743312793139,0.66873872,83218.0,83217.0,0.1547614]
[1743312793839,0.30793872,83218.0,83217.0,0.1547614]
[1743312794040,0.66873872,83218.0,83217.0,0.1547614]
[1743312794234,0.66873872,83218.0,83217.0,0.1540014]
[1743312794434,0.66873872,83218.0,83217.0,0.1547614]
[1743312798640,0.66873872,83218.0,83217.0,0.1540014]
[1743312801741,0.66873872,83218.0,83217.0,0.1548414]
[1743312805157,0.7271822,83218.0,83217.0,0.1548414]
[1743312805441,0.7271822,83218.0,83217.0,0.1540014]
[1743312807244,0.3663822,83218.0,83217.0,0.1540014]
[1743312807438,0.7271822,83218.0,83217.0,0.1548814]
[1743312807638,0.7271822,83218.0,83217.0,0.1540014]
[1743312808735,0.9420823,83218.0,83217.0,0.1540014]
[1743312813750,0.5812823,83218.0,83217.0,0.1540014]
[1743312814249,0.9420823,83218.0,83217.0,0.0338]
[1743312817258,0.7271822,83218.0,83217.0,0.0338]
[1743312819049,0.3663822,83218.0,83217.0,0.0338]
[1743312819445,1.0879822,83218.0,83217.0,0.0338]
[1743312819846,0.3663822,83218.0,83217.0,0.0338]
[1743312820050,1.0879822,83218.0,83217.0,0.0338]
[1743312820855,1.22113783,83218.0,83217.0,0.0338]
[1743312823047,1.22113783,83218.0,83217.0,0.0638]
[1743312823252,1.22113783,83218.0,83217.0,0.1840014]
[1743312823464,1.10661783,83218.0,83217.0,0.1840014]
[1743312823651,1.22113783,83218.0,83217.0,0.1840014]
[1743312824053,1.22113783,83218.0,83217.0,0.0638]
[1743312826759,0.86033783,83218.0,83217.0,0.0638]
[1743312828364,0.7271822,83218.0,83217.0,0.0638]
[1743312828767,0.3663822,83218.0,83217.0,0.0638]
[1743312828959,0.7271822,83218.0,83217.0,0.0638]
[1743312829365,0.7271822,83218.0,83217.0,0.0338]
[1743312832565,0.3663822,83218.0,83217.0,0.0338]
[1743312832867,1.0879822,83218.0,83217.0,0.0338]
[1743312834167,0.3663822,83218.0,83217.0,0.0338]
[1743312834361,0.6126622,83218.0,83217.0,0.0338]
[1743312834567,0.6639822,83218.0,83217.0,0.1540014]
[1743312834866,0.17376348,83218.0,83217.0,0.1540014]
[1743312835062,0.17376348,83218.0,83217.0,0.1547614]
[1743312836069,0.05924348,83218.0,83217.0,0.1547614]
[1743312836468,0.19254386,83218.0,83217.0,0.1547614]
[1743312838369,0.31274376,83218.0,83217.0,0.1547614]
[1743312841061,0.31274376,83218.0,83217.0,0.1540014]
[1743312841266,0.31194376,83218.0,83217.0,0.1540014]
[1743312842377,0.1201999,83218.0,83217.0,0.1540014]
[1743312846175,0.1210399,83218.0,83217.0,0.1548414]
[1743312846888,0.2355599,83218.0,83217.0,0.1548414]
[1743312847493,0.11536,83218.0,83217.0,0.1548414]
[1743312852496,0.2965599,83218.0,83217.0,0.1548414]
[1743312853196,0.17636,83218.0,83217.0,0.1548414]
[1743312853598,0.18837348,83218.0,83217.0,0.1548414]
[1743312854200,0.54917348,83218.0,83217.0,0.1548414]
[1743312855802,0.66937338,83218.0,83217.0,0.1548414]
[1743312856206,0.30857338,83218.0,83217.0,0.1548414]
[1743312856502,0.66937338,83218.0,83217.0,0.1548414]
[1743312860306,0.30857338,83218.0,83217.0,0.1548414]
[1743312860603,0.66937338,83218.0,83217.0,0.1548414]
[1743312861295,0.66937338,83218.0,83217.0,0.1230414]
[1743312861498,0.66937338,83218.0,83217.0,0.00284]
[1743312861701,0.66937338,83218.0,83213.0,0.060103]
[1743312861702,0.0601014,83216.0,83209.0,0.00018024]
[1743312861908,0.1202071,83213.0,83209.0,0.00018024]
[1743312862201,0.0601087,83206.0,83202.0,0.0307]
[1743312862507,0.1202245,83201.0,83200.0,0.0307]
[1743312862700,0.1209845,83201.0,83200.0,0.03154]
[1743312862901,0.1189845,83201.0,83200.0,0.03154]
[1743312863102,0.1169845,83201.0,83200.0,0.1517659]
[1743312863310,0.1793845,83201.0,83200.0,0.03154]
[1743312863512,0.1793845,83201.0,83200.0,0.06444]
[1743312863699,0.1793845,83201.0,83200.0,0.07444]
[1743312865309,0.55203169,83201.0,83200.0,0.07444]
[1743312865701,0.55203169,83201.0,83200.0,0.1938259]
[1743312866009,0.55203169,83201.0,83200.0,0.07444]
[1743312866196,0.55203169,83201.0,83200.0,0.0736]
[1743312867204,0.55203169,83201.0,83200.0,0.0636]
[1743312867509,0.55203169,83201.0,83200.0,0.0646]
[1743312867908,0.55203169,83201.0,83200.0,0.1848259]
[1743312868707,0.4777845,83201.0,83200.0,0.1848259]
[1743312868911,0.1169845,83201.0,83200.0,0.1856259]
[1743312869096,0.11528,83201.0,83200.0,0.1856259]
[1743312869902,0.2355045,83201.0,83200.0,0.1856259]
[1743312870710,0.2355045,83201.0,83200.0,0.2177259]
[1743312871713,0.2355045,83201.0,83200.0,0.0975]
[1743312871911,0.2355045,83201.0,83200.0,0.09746]
[1743312872115,0.2988045,83201.0,83200.0,0.0646]
[1743312872412,0.2988045,83201.0,83200.0,0.1848259]
[1743312872614,0.2988045,83201.0,83200.0,0.1855859]
[1743312876810,0.2988045,83201.0,83200.0,0.06536]
[1743312877316,0.40635954,83201.0,83200.0,0.06536]
[1743312877914,0.40635954,83201.0,83200.0,0.0646]
[1743312878115,0.40635954,83201.0,83200.0,0.06536]
[1743312879015,0.76715954,83201.0,83200.0,0.0646]
[1743312880214,0.6596045,83201.0,83200.0,0.0646]
[1743312880504,0.6596045,83201.0,83198.0,8e-05]
[1743312880505,0.1202274,83199.0,83198.0,8e-05]
[1743312880715,0.1208674,83199.0,83198.0,8e-05]
[1743312882015,0.1208674,83199.0,83198.0,0.00108]
[1743312882617,0.1208674,83199.0,83198.0,0.001]
[1743312883607,0.1208674,83199.0,83198.0,0.0332]
[1743312884218,0.4816674,83199.0,83198.0,0.034]
[1743312884418,0.4816674,83199.0,83198.0,0.0332]
[1743312885413,0.1208674,83199.0,83198.0,0.0332]
[1743312885611,0.4816674,83199.0,83198.0,0.034]
[1743312885915,0.4816674,83199.0,83198.0,0.0332]
[1743312886720,0.120236,83193.0,83189.0,0.1202417]
[1743312886918,0.120996,83193.0,83192.0,0.00102024]
[1743312887223,0.120996,83193.0,83192.0,0.00026024]
[1743312887527,0.120996,83193.0,83192.0,0.00102024]
[1743312887722,0.154296,83193.0,83192.0,0.00102024]
[1743312887921,0.154296,83193.0,83192.0,0.00026024]
[1743312888117,0.186796,83193.0,83192.0,0.00226024]
[1743312888323,0.186796,83193.0,83192.0,0.00426024]
[1743312888923,0.547596,83193.0,83192.0,0.00426024]
[1743312889221,0.06012,83191.0,83180.0,8e-05]
[1743312889419,0.4810476,83185.0,83181.0,0.2405046]
[1743312889726,0.4810476,83185.0,83184.0,0.00076]
[1743312889727,0.4818076,83185.0,83184.0,0.00076]
[1743312889928,0.4778076,83185.0,83184.0,0.00076]
[1743312890319,0.5082076,83185.0,83184.0,0.00176]
[1743312890525,0.5407076,83185.0,83184.0,0.00176]
[1743312891014,0.5407076,83185.0,83184.0,0.03446]
[1743312891424,0.5407076,83185.0,83184.0,0.06676]
[1743312891621,0.5407076,83185.0,83184.0,0.06776]
[1743312892017,0.9015076,83185.0,83184.0,0.06776]
[1743312892728,0.91068766,83185.0,83184.0,0.06776]
[1743312892933,0.91068766,83185.0,83184.0,0.067]
[1743312895233,0.91068766,83185.0,83184.0,0.187249]
[1743312895530,0.91068766,83185.0,83184.0,0.188009]
[1743312895726,0.18908766,83185.0,83184.0,0.188009]
[1743312896029,0.84778766,83185.0,83184.0,0.188009]
[1743312896231,0.8386076,83185.0,83184.0,0.188009]
[1743312896431,0.47608,83185.0,83184.0,0.188009]
[1743312896638,0.5963276,83185.0,83184.0,0.188009]
[1743312897931,0.34312104,83185.0,83184.0,0.188009]
[1743312898428,0.37572104,83185.0,83184.0,0.188009]
[1743312900929,0.73652104,83185.0,83184.0,0.188009]
[1743312901329,0.37572104,83185.0,83184.0,0.188009]
[1743312901534,0.73652104,83185.0,83184.0,0.188009]
[1743312902829,0.70392104,83185.0,83184.0,0.188009]
[1743312905030,0.34312104,83185.0,83184.0,0.188009]
[1743312905231,0.6272276,83185.0,83184.0,0.188009]
[1743312905729,0.6272276,83185.0,83184.0,0.06776]
[1743312906236,0.6272276,83185.0,83184.0,0.067]
[1743312906436,0.6272276,83185.0,83184.0,0.06776]
[1743312906637,0.6272276,83185.0,83184.0,0.067]
[1743312908236,0.6272276,83185.0,83184.0,0.0678]
[1743312908439,0.6272276,83185.0,83184.0,0.067]
[1743312908934,0.6272276,83185.0,83184.0,0.06776]
[1743312909540,0.6272276,83185.0,83184.0,0.067]
[1743312909739,0.1202519,83182.0,83179.0,0.00048089]
[1743312909937,0.1202548,83180.0,83179.0,0.03248089]
[1743312910142,0.1208948,83180.0,83179.0,0.03248089]
[1743312910340,0.1208948,83180.0,83179.0,0.00048089]
[1743312910341,0.1516948,83180.0,83179.0,0.00048089]
[1743312910534,0.2164948,83180.0,83179.0,0.00048089]
[1743312910842,0.22871898,83180.0,83179.0,0.00048089]
[1743312911243,0.22871898,83180.0,83179.0,0.00248089]
[1743312911838,0.22871898,83180.0,83179.0,0.00448089]
[1743312912141,0.1202592,83177.0,83176.0,0.00018024]
[1743312912334,0.4816992,83177.0,83176.0,0.00018024]
[1743312912535,0.4796992,83177.0,83176.0,0.00018024]
[1743312912944,0.5448992,83177.0,83176.0,0.00018024]
[1743312913447,0.5448992,83177.0,83176.0,0.00218024]
[1743312913944,0.5448992,83177.0,83176.0,0.00418024]
[1743312916947,0.1840992,83177.0,83176.0,0.00418024]
[1743312917337,0.5448992,83177.0,83176.0,0.00506024]
[1743312917540,0.5448992,83177.0,83176.0,0.00318024]
[1743312917541,0.60337215,83177.0,83176.0,0.00318024]
[1743312918048,0.60337215,83177.0,83176.0,0.03608024]
[1743312918443,0.60337215,83177.0,83176.0,0.03508024]
[1743312919547,0.24257215,83177.0,83176.0,0.03508024]
[1743312919740,0.60337215,83177.0,83176.0,0.03584024]
[1743312919942,0.60337215,83177.0,83176.0,0.03508024]
[1743312920652,0.78282595,83177.0,83176.0,0.03508024]
[1743312922244,0.42202595,83177.0,83176.0,0.03508024]
[1743312922446,0.78282595,83177.0,83176.0,0.03584024]
[1743312922647,0.78282595,83177.0,83176.0,0.03508024]
[1743312924155,0.5448992,83177.0,83176.0,0.03508024]
[1743312924352,0.5118992,83177.0,83176.0,0.03596024]
[1743312924655,0.6264192,83177.0,83176.0,0.03248024]
[1743312924850,0.6579192,83177.0,83176.0,0.03248024]
[1743312925050,0.6579192,83177.0,83176.0,0.06348024]
[1743312927760,0.2971192,83177.0,83176.0,0.06348024]
[1743312927962,0.6579192,83177.0,83176.0,0.06328024]
[1743312928162,0.6589192,83177.0,83176.0,0.06248024]
[1743312929062,0.2981192,83177.0,83176.0,0.06248024]
[1743312929265,0.6589192,83177.0,83176.0,0.06324024]
[1743312929455,0.2981192,83177.0,83176.0,0.06248024]
[1743312929656,0.6589192,83177.0,83176.0,0.06324024]
[1743312929856,0.6589192,83177.0,83176.0,0.06248024]
[1743312930267,0.2981192,83177.0,83176.0,0.06248024]
[1743312930567,0.6589192,83177.0,83176.0,0.06324024]
[1743312930866,0.6589192,83177.0,83176.0,0.06248024]
[1743312931668,0.8968459,83177.0,83176.0,0.06248024]
[1743312935163,0.5360459,83177.0,83176.0,0.06248024]
[1743312935364,0.8968459,83177.0,83176.0,0.06328024]
[1743312935570,0.5360459,83177.0,83176.0,0.06248024]
[1743312935771,0.8968459,83177.0,83176.0,0.06324024]
[1743312935965,0.7173921,83177.0,83176.0,0.06248024]
[1743312937368,0.3565921,83177.0,83176.0,0.06248024]
[1743312937567,0.7173921,83177.0,83176.0,0.06324024]
[1743312937768,0.7173921,83177.0,83176.0,0.06248024]
[1743312939673,0.93295848,83177.0,83176.0,0.06248024]
[1743312940471,0.57215848,83177.0,83176.0,0.06248024]
[1743312940774,0.93295848,83177.0,83176.0,0.06324024]
[1743312940972,0.93295848,83177.0,83176.0,0.06248024]
[1743312942275,0.57215848,83177.0,83176.0,0.06248024]
[1743312942571,0.93295848,83177.0,83176.0,0.06324024]
[1743312942767,0.85518792,83177.0,83176.0,0.06248024]
[1743312943466,0.49438792,83177.0,83176.0,0.06248024]
[1743312943770,0.85518792,83177.0,83176.0,0.06324024]
[1743312944068,0.85518792,83177.0,83176.0,0.06248024]
[1743312944770,0.49438792,83177.0,83176.0,0.06248024]
[1743312944964,0.85518792,83177.0,83176.0,0.06328024]
[1743312945160,0.85518792,83177.0,83176.0,0.06248024]
[1743312945667,0.74066792,83177.0,83176.0,0.06248024]
[1743312945865,0.85518792,83177.0,83176.0,0.06248024]
[1743312947274,0.49438792,83177.0,83176.0,0.06248024]
[1743312947476,0.49438792,83177.0,83176.0,0.06324024]
[1743312947676,0.85518792,83177.0,83176.0,0.06324024]
[1743312947864,0.85518792,83177.0,83176.0,0.06248024]
[1743312948066,0.85518792,83177.0,83176.0,0.06328024]
[1743312948268,0.85518792,83177.0,83176.0,0.06248024]
[1743312948876,0.120262,83175.0,83174.0,0.1202634]
[1743312949080,0.120902,83175.0,83174.0,0.1202634]
[1743312949467,0.512402,83175.0,83174.0,0.1202634]
[1743312949867,0.151602,83175.0,83174.0,0.1202634]
[1743312950175,0.512402,83175.0,83174.0,0.1210634]
[1743312950371,0.184802,83175.0,83174.0,0.1503634]
[1743312950576,0.545602,83175.0,83174.0,0.1511234]
[1743312950779,0.545602,83175.0,83174.0,0.1503634]
[1743312952380,0.74187072,83175.0,83174.0,0.1503634]
[1743312953274,0.38107072,83175.0,83174.0,0.1503634]
[1743312953581,0.74187072,83175.0,83174.0,0.1512034]
[1743312953785,0.74187072,83175.0,83174.0,0.1503634]
[1743312959380,0.38107072,83175.0,83174.0,0.1503634]
[1743312959581,0.74187072,83175.0,83174.0,0.1511634]
[1743312959882,0.74187072,83175.0,83174.0,0.1503634]
[1743312960383,0.38107072,83175.0,83174.0,0.1503634]
[1743312960685,0.81987407,83175.0,83174.0,0.1512034]
[1743312960875,0.81987407,83175.0,83174.0,0.1503634]
[1743312963888,0.6040749,83175.0,83174.0,0.1503634]
[1743312964087,0.6040749,83175.0,83174.0,0.1512034]
[1743312964282,0.5401749,83175.0,83174.0,0.1512034]
[1743312964883,0.2938949,83175.0,83174.0,0.1512034]
[1743312968082,0.235422,83175.0,83174.0,0.1512034]
[1743312970785,0.596222,83175.0,83174.0,0.1512034]
[1743312972990,0.268322,83175.0,83174.0,0.1512034]
[1743312973196,0.629122,83175.0,83174.0,0.1512034]
[1743312975289,0.268322,83175.0,83174.0,0.1512034]
[1743312975498,0.629122,83175.0,83174.0,0.1512034]
[1743312975792,0.629122,83175.0,83174.0,0.00084]
[1743312975997,0.629122,83175.0,83174.0,0.1202635]
[1743312975998,0.80893661,83175.0,83174.0,0.1202635]
[1743312976190,0.80893661,83175.0,83174.0,0.1210235]
[1743312976385,0.80893661,83175.0,83174.0,0.00076]
[1743312976595,0.80893661,83175.0,83173.0,0.1203448]
[1743312976596,0.1202635,83174.0,83173.0,0.1203448]
[1743312976896,0.1835835,83174.0,83173.0,0.1211048]
[1743312977098,0.2136835,83174.0,83173.0,8e-05]
[1743312977284,0.2136835,83174.0,83172.0,0.0601325]
[1743312977285,0.1202693,83171.0,83170.0,0.1202685]
[1743312977493,0.1210293,83171.0,83170.0,0.1543293]
[1743312977693,0.1835293,83171.0,83170.0,0.1535693]
[1743312977888,0.1835293,83171.0,83170.0,0.1543693]
[1743312978198,0.19549987,83171.0,83170.0,0.1543693]
[1743312978594,0.19549987,83171.0,83170.0,0.1553693]
[1743312979101,0.19549987,83171.0,83170.0,0.1220693]
[1743312979890,0.25397243,83171.0,83170.0,0.1220693]
[1743312980201,0.25397243,83171.0,83170.0,0.1552693]
[1743312980399,0.25397243,83171.0,83170.0,0.1560693]
[1743312981405,0.25397243,83171.0,83170.0,0.1230693]
[1743312981787,0.25397243,83171.0,83170.0,0.1222693]